fUSD/lending_fUSD_20250620
["ID","MTS","AMOUNT","RATE_DAILY","PERIOD"]
[366740531,1750426249647,-497.6,0.00026282,4]
[366740532,1750426249657,-658.35,0.00026282,4]
[366740533,1750426249667,-490.0,0.00026282,4]
[366740534,1750426249677,-490.0,0.00026282,4]
[366740535,1750426249686,-490.0,0.00026282,4]
[366740536,1750426249696,-490.0,0.00026282,4]
[366740537,1750426249706,-971.99,0.00026282,4]
[366740538,1750426249716,-490.0,0.00026282,4]
[366740539,1750426249726,-490.0,0.00026282,4]
[366740540,1750426249736,-490.0,0.00026282,4]
[366740541,1750426249746,-490.0,0.00026282,4]
[366740542,1750426249756,-664.11,0.00026282,4]
[366740543,1750426249767,-490.0,0.00026282,4]
[366740544,1750426249777,-509.72,0.00026282,4]
[366740545,1750426249787,-733.46,0.00026282,4]
[366740546,1750426249796,-490.0,0.00026282,4]
[366740547,1750426249806,-490.0,0.00026282,4]
[366740548,1750426249816,-490.0,0.00026282,4]
[366740549,1750426249826,-536.11,0.00026282,4]
[366740550,1750426249835,-490.0,0.00026282,4]
[366740551,1750426249845,-213.23,0.00026282,4]
[366740552,1750426249856,-513.38,0.00026282,4]
[366740553,1750426249866,-553.38,0.00026282,4]
[366740554,1750426249876,-591.33,0.00026282,4]
[366740555,1750426249886,-490.0,0.00026282,4]
[366740556,1750426249895,-490.0,0.00026282,4]
[366740557,1750426249906,-490.0,0.00026282,4]
[366740558,1750426249916,-6224.36,0.00026282,4]
[366740559,1750426249926,-130.93707973,0.00026282,4]
[366740561,1750426271543,201.0,0.00022893,2]
[366740562,1750426301449,204.0,0.00022893,2]
[366740564,1750426413206,150.0,0.00023207,2]
[366740573,1750426591026,167.82,0.00020327,2]
[366740583,1750426858310,150.41,0.00013699,2]
[366740585,1750426877683,200.0,0.00013358,2]
[366740586,1750426895274,304.00368532,0.0002,5]
[366741318,1750427117764,200.0,0.000199,2]
[366741347,1750427356040,200.0,0.00019801,2]
[366741361,1750427432215,-1700.95360954,0.00023603,30]
[366741362,1750427432229,-609.74395448,0.00023603,30]
[366741363,1750427432242,-44.21899415,0.00023603,30]
[366741364,1750427432252,-201.0,0.00023603,2]
[366741365,1750427432262,-200.38,0.00024267,2]
[366741366,1750427432272,-533.91,0.00024288,2]
[366741367,1750427432281,-153.81372567,0.00024343,2]
[366741368,1750427432291,-250.0,0.00024346,2]
[366741369,1750427432301,-1034.31809448,0.00024382,2]
[366741373,1750427432583,-165.68190552,0.00024382,2]
[366741375,1750427432594,-854.96804884,0.00024383,2]
[366741377,1750427432605,-952.79788225,0.00024383,2]
[366741378,1750427432617,-5076.51406891,0.00024383,2]
[366741379,1750427432626,-666.0,0.00024389,2]
[366741380,1750427432636,-300.0,0.00024443,2]
[366741381,1750427432646,-312.5,0.00024444,2]
[366741382,1750427432656,-193.52,0.00024492,2]
[366741383,1750427432666,-10256.08,0.000245,2]
[366741384,1750427432676,-773.15,0.00024616,2]
[366741385,1750427432686,-200.0,0.00024643,2]
[366741386,1750427432696,-2000.0,0.00024658,15]
[366741388,1750427432706,-1181.36,0.00024673,2]
[366741390,1750427432715,-151.0,0.00024673,2]
[366741392,1750427432725,-151.0,0.00024673,2]
[366741394,1750427432735,-151.0,0.00024673,2]
[366741396,1750427432745,-151.0,0.00024673,2]
[366741398,1750427432755,-151.0,0.00024673,2]
[366741400,1750427432765,-151.0,0.00024673,2]
[366741403,1750427432775,-225.0,0.00024673,2]
[366741405,1750427432784,-207.4,0.00024673,2]
[366741408,1750427432793,-150.0,0.00024687,2]
[366741411,1750427432803,-2148.13312661,0.00024687,2]
[366741414,1750427432814,-36308.69,0.00024688,2]
[366741417,1750427432824,-742.41,0.00024708,2]
[366741420,1750427432833,-1358.61,0.00024732,2]
[366741423,1750427432842,-393.0,0.00024934,7]
[366741425,1750427432852,-220.2,0.00025013,2]
[366741427,1750427432863,-392.0,0.00025021,2]
[366741429,1750427432873,-9511.16,0.00025031,2]
[366741431,1750427432883,-201.0,0.00025059,4]
[366741433,1750427432893,-6786.22,0.000252,2]
[366741435,1750427432903,-1629.83,0.00025214,2]
[366741437,1750427432912,-392.0,0.00025219,2]
[366741439,1750427432923,-1223.67,0.00025239,2]
[366741441,1750427432933,-1000.0,0.00025239,2]
[366741443,1750427432943,-392.0,0.00025243,2]
[366741445,1750427432953,-537.45,0.00025264,2]
[366741447,1750427432963,-23900.0,0.00025397,2]
[366741449,1750427432973,-528.78115579,0.000254,13]
[366741451,1750427432982,-528.78115571,0.000254,13]
[366741453,1750427432992,-167.82,0.00025409,2]
[366741455,1750427433001,-242.826664,0.00025456,4]
[366741457,1750427433010,-392.0,0.00025556,2]
[366741459,1750427433020,-774.100048,0.00025604,2]
[366741462,1750427433041,-392.0,0.00025606,2]
[366741464,1750427433052,-151.40496027,0.00025625,2]
[366741466,1750427433064,-392.0,0.00025664,7]
[366741468,1750427433074,-392.0,0.00025667,2]
[366741470,1750427433084,-392.0,0.0002571,2]
[366741472,1750427433094,-55979.09762159,0.00025716,5]
[366741475,1750427433112,-1080.56501414,0.00025716,5]
[366741477,1750427433124,-301.65,0.00025716,5]
[366741479,1750427433137,-7630.15266169,0.00025716,5]
[366741481,1750427433147,-500.0,0.00025724,2]
[366741483,1750427433159,-500.0,0.00025724,2]
[366741485,1750427433170,-500.0,0.00025724,2]
[366741487,1750427433181,-480.67093417,0.00025724,2]
[366741489,1750427433191,-500.0,0.00025724,2]
[366741491,1750427433202,-500.0,0.00025724,2]
[366741493,1750427433212,-500.0,0.00025724,2]
[366741495,1750427433222,-424.78625417,0.00025724,2]
[366741497,1750427433232,-500.0,0.00025724,2]
[366741499,1750427433244,-300.0,0.00025724,2]
[366741501,1750427433254,-500.0,0.00025724,2]
[366741503,1750427433264,-500.0,0.00025724,2]
[366741505,1750427433274,-500.0,0.00025724,2]
[366741508,1750427433284,-500.0,0.00025724,2]
[366741510,1750427433295,-500.0,0.00025724,2]
[366741512,1750427433305,-533.03361092,0.00025724,2]
[366741514,1750427433318,-225.89262343,0.00025724,2]
[366741516,1750427433327,-490.0,0.00025725,4]
[366741518,1750427433338,-322.14,0.00025725,4]
[366741520,1750427433349,-490.0,0.00025725,4]
[366741522,1750427433359,-490.0,0.00025725,4]
[366741524,1750427433368,-490.0,0.00025725,4]
[366741526,1750427433378,-490.0,0.00025725,4]
[366741528,1750427433388,-490.0,0.00025725,4]
[366741530,1750427433398,-490.0,0.00025725,4]
[366741532,1750427433408,-490.0,0.00025725,4]
[366741534,1750427433418,-490.0,0.00025725,4]
[366741536,1750427433428,-490.0,0.00025725,4]
[366741538,1750427433438,-490.0,0.00025725,4]
[366741540,1750427433448,-490.0,0.00025725,4]
[366741542,1750427433459,-490.0,0.00025725,4]
[366741544,1750427433474,-490.0,0.00025725,4]
[366741546,1750427433484,-490.0,0.00025725,4]
[366741548,1750427433494,-490.0,0.00025725,4]
[366741550,1750427433504,-490.0,0.00025725,4]
[366741552,1750427433514,-490.0,0.00025725,4]
[366741554,1750427433524,-490.0,0.00025725,4]
[366741556,1750427433534,-490.0,0.00025725,4]
[366741558,1750427433543,-493.34901741,0.00025725,4]
[366741560,1750427433554,-490.0,0.00025725,4]
[366741562,1750427433564,-490.0,0.00025725,4]
[366741564,1750427433574,-490.0,0.00025725,4]
[366741566,1750427433584,-493.55,0.00025725,4]
[366741569,1750427433594,-490.0,0.00025725,4]
[366741570,1750427433604,-490.0,0.00025725,4]
[366741572,1750427433613,-490.0,0.00025725,4]
[366741574,1750427433623,-490.0,0.00025725,4]
[366741577,1750427433634,-490.0,0.00025725,4]
[366741579,1750427433644,-548.44,0.00025725,4]
[366741581,1750427433654,-490.0,0.00025725,4]
[366741583,1750427433664,-490.0,0.00025725,4]
[366741585,1750427433675,-362.06711903,0.00025725,4]
[366741587,1750427433688,-127.93288097,0.00025725,4]
[366741589,1750427433699,-490.0,0.00025725,4]
[366741591,1750427433709,-79.36432289,0.00025725,4]
[366741826,1750427438076,-410.63567711,0.00025725,4]
[366741827,1750427438086,-490.0,0.00025725,4]
[366741828,1750427438096,-490.0,0.00025725,4]
[366741829,1750427438106,-490.0,0.00025725,4]
[366741830,1750427438116,-490.0,0.00025725,4]
[366741831,1750427438125,-516.25,0.00025725,4]
[366741832,1750427438136,-490.0,0.00025725,4]
[366741833,1750427438146,-461.30235354,0.00025725,4]
[366741834,1750427438160,-490.0,0.00025725,4]
[366741835,1750427438172,-357.79468758,0.00025725,4]
[366741836,1750427438183,-490.0,0.00025725,4]
[366741837,1750427438192,-490.0,0.00025725,4]
[366741838,1750427438202,-490.0,0.00025725,4]
[366741839,1750427438212,-490.0,0.00025725,4]
[366741840,1750427438223,-490.0,0.00025725,4]
[366741841,1750427438233,-490.0,0.00025725,4]
[366741842,1750427438244,-490.0,0.00025725,4]
[366741843,1750427438255,-490.0,0.00025725,4]
[366741844,1750427438265,-536.31,0.00025725,4]
[366741845,1750427438275,-490.0,0.00025725,4]
[366741846,1750427438284,-490.0,0.00025725,4]
[366741847,1750427438294,-490.0,0.00025725,4]
[366741848,1750427438303,-490.0,0.00025725,4]
[366741849,1750427438313,-490.0,0.00025725,4]
[366741850,1750427438323,-490.0,0.00025725,4]
[366741851,1750427438335,-490.0,0.00025725,4]
[366741852,1750427438345,-490.0,0.00025725,4]
[366741853,1750427438355,-170.86780665,0.00025725,4]
[366741854,1750427438364,-490.0,0.00025725,4]
[366741855,1750427438373,-490.0,0.00025725,4]
[366741856,1750427438383,-490.0,0.00025725,4]
[366741857,1750427438393,-500.0,0.00025725,4]
[366741858,1750427438402,-604.56,0.00025725,4]
[366741859,1750427438412,-490.0,0.00025725,4]
[366741860,1750427438421,-490.0,0.00025725,4]
[366741861,1750427438431,-490.0,0.00025725,4]
[366741862,1750427438441,-490.0,0.00025725,4]
[366741863,1750427438451,-490.0,0.00025725,4]
[366741864,1750427438460,-490.0,0.00025725,4]
[366741866,1750427438470,-490.0,0.00025725,4]
[366741867,1750427438480,-490.0,0.00025725,4]
[366741868,1750427438490,-490.0,0.00025725,4]
[366741869,1750427438500,-329.81730188,0.00025725,4]
[366741870,1750427438509,-490.0,0.00025725,4]
[366741871,1750427438519,-490.0,0.00025725,4]
[366741872,1750427438529,-490.0,0.00025725,4]
[366741873,1750427438539,-490.0,0.00025725,4]
[366741874,1750427438549,-490.0,0.00025725,4]
[366741875,1750427438559,-490.0,0.00025725,4]
[366741876,1750427438569,-490.0,0.00025725,4]
[366741877,1750427438579,-490.0,0.00025725,4]
[366741879,1750427438588,-113.68120459,0.00025725,4]
[366741883,1750427438618,-376.31879541,0.00025725,4]
[366741886,1750427438629,-490.0,0.00025725,4]
[366741888,1750427438639,-154.42916962,0.00025725,4]
[366741890,1750427438652,-335.57083038,0.00025725,4]
[366741891,1750427438661,-490.0,0.00025725,4]
[366741893,1750427438671,-483.13048921,0.00025725,4]
[366741894,1750427438684,-6.86951079,0.00025725,4]
[366741896,1750427438694,-499.35923095,0.00025725,4]
[366741897,1750427438704,-490.0,0.00025725,4]
[366741899,1750427438714,-490.0,0.00025725,4]
[366741901,1750427438725,-490.0,0.00025725,4]
[366741902,1750427438736,-490.0,0.00025725,4]
[366741904,1750427438765,-490.0,0.00025725,4]
[366741906,1750427438776,-490.0,0.00025725,4]
[366741908,1750427438787,-490.0,0.00025725,4]
[366741909,1750427438797,-490.0,0.00025725,4]
[366741911,1750427438808,-490.0,0.00025725,4]
[366741913,1750427438820,-165.97796633,0.00025725,4]
[366741914,1750427438830,-490.0,0.00025725,4]
[366741916,1750427438841,-490.0,0.00025725,4]
[366741918,1750427438851,-490.0,0.00025725,4]
[366741920,1750427438861,-490.0,0.00025725,4]
[366741921,1750427438872,-446.48990143,0.00025725,4]
[366741923,1750427438883,-490.0,0.00025725,4]
[366741925,1750427438893,-490.0,0.00025725,4]
[366741926,1750427438904,-490.0,0.00025725,4]
[366741928,1750427438916,-490.0,0.00025725,4]
[366741930,1750427438926,-490.0,0.00025725,4]
[366741932,1750427438936,-490.0,0.00025725,4]
[366741933,1750427438946,-589.95,0.00025725,4]
[366741935,1750427438957,-392.0,0.00025802,2]
[366741937,1750427438967,-392.0,0.00025805,7]
[366741938,1750427438978,-536.89359411,0.00025808,8]
[366741940,1750427438988,-151.40496026,0.00025834,2]
[366741942,1750427438998,-392.0,0.0002585,2]
[366741943,1750427439008,-528.78115571,0.00025866,14]
[366741945,1750427439019,-774.100048,0.0002588,2]
[366741947,1750427439029,-1000.0,0.00025908,2]
[366741949,1750427439040,-1683.3002,0.00025908,2]
[366741951,1750427439050,-546.2696,0.00025908,3]
[366741953,1750427439060,-2382.1583884,0.00025908,2]
[366741954,1750427439071,-392.0,0.00025945,7]
[366741956,1750427439081,-501.15678859,0.00025973,2]
[366741958,1750427439092,-187.49,0.00025988,2]
[366741960,1750427439102,-490.0,0.00025997,4]
[366741961,1750427439113,-490.0,0.00025997,4]
[366741963,1750427439123,-490.0,0.00025997,4]
[366741965,1750427439133,-490.0,0.00025997,4]
[366741967,1750427439143,-490.0,0.00025997,4]
[366741968,1750427439154,-490.0,0.00025997,4]
[366741970,1750427439168,-490.0,0.00025997,4]
[366741972,1750427439178,-490.0,0.00025997,4]
[366741974,1750427439189,-490.0,0.00025997,4]
[366741975,1750427439199,-490.0,0.00025997,4]
[366741977,1750427439211,-490.0,0.00025997,4]
[366741979,1750427439222,-490.0,0.00025997,4]
[366741981,1750427439233,-490.0,0.00025997,4]
[366741983,1750427439245,-490.0,0.00025997,2]
[366741984,1750427439255,-490.0,0.00025997,4]
[366741986,1750427439266,-597.2,0.00025998,4]
[366741988,1750427439276,-490.0,0.00025998,4]
[366741990,1750427439287,-490.0,0.00025998,4]
[366741991,1750427439297,-490.0,0.00025998,4]
[366741993,1750427439308,-490.0,0.00025998,4]
[366741995,1750427439318,-625.88,0.00025998,4]
[366741997,1750427439330,-490.0,0.00025998,4]
[366741998,1750427439340,-490.0,0.00025998,4]
[366742000,1750427439350,-490.0,0.00025998,4]
[366742002,1750427439360,-490.0,0.00025998,4]
[366742004,1750427439371,-490.0,0.00025998,4]
[366742006,1750427439382,-490.0,0.00025998,4]
[366742008,1750427439393,-490.0,0.00025998,4]
[366742010,1750427439404,-490.0,0.00025998,4]
[366742011,1750427439414,-490.0,0.00025998,4]
[366742013,1750427439425,-490.0,0.00025998,4]
[366742015,1750427439436,-490.0,0.00025998,4]
[366742016,1750427439447,-490.0,0.00025998,4]
[366742018,1750427439462,-490.0,0.00025998,4]
[366742020,1750427439472,-250.0,0.00025998,4]
[366742022,1750427439483,-490.0,0.00025998,4]
[366742024,1750427439494,-492.06984786,0.00025998,4]
[366742026,1750427439505,-490.0,0.00025998,4]
[366742027,1750427439517,-490.0,0.00025998,4]
[366742029,1750427439527,-490.0,0.00025998,4]
[366742031,1750427439538,-490.0,0.00025998,4]
[366742033,1750427439549,-490.0,0.00025998,4]
[366742035,1750427439559,-490.0,0.00025998,4]
[366742036,1750427439569,-490.0,0.00025998,4]
[366742038,1750427439582,-490.0,0.00025998,4]
[366742040,1750427439594,-490.0,0.00025998,4]
[366742042,1750427439604,-490.0,0.00025998,4]
[366742044,1750427439615,-490.0,0.00025998,4]
[366742046,1750427439626,-490.0,0.00025998,4]
[366742047,1750427439637,-490.0,0.00025998,4]
[366742049,1750427439647,-490.0,0.00025998,4]
[366742051,1750427439658,-490.0,0.00025998,4]
[366742053,1750427439668,-490.0,0.00025998,4]
[366742054,1750427439678,-572.54062851,0.00025998,4]
[366742056,1750427439689,-490.0,0.00025998,4]
[366742058,1750427439700,-490.0,0.00025998,4]
[366742060,1750427439711,-490.0,0.00025998,4]
[366742062,1750427439722,-490.0,0.00025998,4]
[366742064,1750427439734,-618.45,0.00025998,4]
[366742066,1750427439745,-490.0,0.00025998,4]
[366742068,1750427439755,-490.0,0.00025998,4]
[366742069,1750427439766,-490.0,0.00025998,4]
[366742071,1750427439776,-490.0,0.00025998,4]
[366742073,1750427439787,-490.0,0.00025998,4]
[366742075,1750427439797,-490.0,0.00025998,4]
[366742077,1750427439807,-490.0,0.00025998,4]
[366742079,1750427439817,-490.0,0.00025998,4]
[366742080,1750427439830,-490.0,0.00025998,4]
[366742082,1750427439841,-490.0,0.00025998,4]
[366742084,1750427439852,-490.0,0.00025998,4]
[366742086,1750427439863,-490.0,0.00025998,4]
[366742088,1750427439873,-490.0,0.00025998,4]
[366742090,1750427439884,-495.24850517,0.00025998,4]
[366742091,1750427439895,-490.0,0.00025998,4]
[366742093,1750427439906,-490.0,0.00025998,4]
[366742095,1750427439916,-490.0,0.00025998,4]
[366742097,1750427439927,-608.64337946,0.00025998,4]
[366742100,1750427439938,-490.0,0.00025998,4]
[366742102,1750427439948,-490.0,0.00025998,4]
[366742104,1750427439959,-460.64345283,0.00025998,4]
[366742106,1750427439970,-490.0,0.00025998,4]
[366742107,1750427439980,-490.0,0.00025998,4]
[366742109,1750427439991,-490.0,0.00025998,4]
[366742111,1750427440001,-358.93409148,0.00025998,4]
[366742113,1750427440011,-490.0,0.00025998,4]
[366742115,1750427440022,-256.18010037,0.00025998,4]
[366742117,1750427440032,-490.0,0.00025998,4]
[366742119,1750427440042,-490.0,0.00025998,4]
[366742121,1750427440053,-490.0,0.00025998,4]
[366742122,1750427440063,-490.0,0.00025998,4]
[366742126,1750427440074,-711.97,0.00025998,4]
[366742129,1750427440085,-756.82,0.00025998,4]
[366742132,1750427440095,-490.0,0.00025998,4]
[366742135,1750427440106,-490.0,0.00025998,4]
[366742137,1750427440116,-490.0,0.00025998,4]
[366742139,1750427440126,-490.0,0.00025998,4]
[366742142,1750427440136,-490.0,0.00025998,4]
[366742145,1750427440146,-490.0,0.00025998,4]
[366742148,1750427440160,-672.81,0.00025998,4]
[366742151,1750427440170,-490.0,0.00025998,4]
[366742155,1750427440180,-490.0,0.00025998,4]
[366742157,1750427440191,-490.0,0.00025998,4]
[366742160,1750427440202,-490.0,0.00025998,4]
[366742162,1750427440213,-490.0,0.00025998,4]
[366742163,1750427440223,-1402.92,0.00025998,4]
[366742165,1750427440234,-490.0,0.00025998,4]
[366742167,1750427440245,-490.0,0.00025998,4]
[366742168,1750427440255,-490.0,0.00025998,4]
[366742171,1750427440266,-490.0,0.00025998,4]
[366742173,1750427440277,-490.0,0.00025998,4]
[366742175,1750427440287,-490.0,0.00025998,4]
[366742177,1750427440298,-490.0,0.00025998,4]
[366742179,1750427440309,-490.0,0.00025998,4]
[366742181,1750427440319,-490.0,0.00025998,4]
[366742183,1750427440330,-490.0,0.00025998,4]
[366742185,1750427440341,-499.22674662,0.00025998,4]
[366742187,1750427440352,-608.77,0.00025998,4]
[366742189,1750427440363,-495.51,0.00025998,4]
[366742191,1750427440373,-490.0,0.00025998,4]
[366742193,1750427440383,-490.0,0.00025998,4]
[366742195,1750427440394,-490.0,0.00025998,4]
[366742197,1750427440405,-789.96,0.00025998,4]
[366742199,1750427440415,-490.0,0.00025998,4]
[366742201,1750427440426,-490.0,0.00025998,4]
[366742204,1750427440436,-491.44,0.00025998,4]
[366742205,1750427440447,-490.0,0.00025998,4]
[366742206,1750427440458,-904.78,0.00025998,4]
[366742207,1750427440468,-490.0,0.00025998,4]
[366742208,1750427440479,-912.9,0.00025998,4]
[366742209,1750427440489,-490.0,0.00025998,4]
[366742210,1750427440499,-490.0,0.00025998,4]
[366742211,1750427440509,-490.0,0.00025998,4]
[366742212,1750427440520,-490.0,0.00025998,4]
[366742213,1750427440530,-490.0,0.00025998,4]
[366742214,1750427440541,-435.38,0.00025998,4]
[366742215,1750427440552,-490.0,0.00025998,4]
[366742216,1750427440563,-490.0,0.00025998,4]
[366742217,1750427440573,-490.0,0.00025998,4]
[366742218,1750427440584,-1000.0,0.00025998,2]
[366742219,1750427440595,-490.0,0.00025998,4]
[366742220,1750427440605,-490.0,0.00025998,4]
[366742221,1750427440616,-490.0,0.00025998,4]
[366742222,1750427440626,-490.0,0.00025998,4]
[366742223,1750427440637,-490.0,0.00025998,4]
[366742224,1750427440647,-1076.74,0.00025998,4]
[366742225,1750427440658,-468.63,0.00025998,4]
[366742226,1750427440669,-490.0,0.00025998,4]
[366742227,1750427440681,-490.0,0.00025998,4]
[366742228,1750427440693,-490.0,0.00025998,4]
[366742229,1750427440704,-490.0,0.00025998,4]
[366742231,1750427440715,-386.71,0.00025998,4]
[366742232,1750427440725,-490.0,0.00025998,4]
[366742234,1750427440735,-490.0,0.00025998,4]
[366742236,1750427440746,-490.0,0.00025998,4]
[366742238,1750427440757,-793.7,0.00025998,4]
[366742240,1750427440767,-490.0,0.00025998,4]
[366742242,1750427440778,-490.0,0.00025998,4]
[366742243,1750427440788,-490.0,0.00025998,4]
[366742246,1750427440798,-1165.54,0.00025998,4]
[366742248,1750427440809,-506.38,0.00025998,4]
[366742250,1750427440820,-466.43428444,0.00025998,4]
[366742252,1750427440839,-146.11571556,0.00025998,4]
[366742255,1750427440850,-490.0,0.00025999,4]
[366742257,1750427440860,-420.38428444,0.00025999,4]
[366742260,1750427440883,-76.03571556,0.00025999,4]
[366742262,1750427440894,-490.0,0.00025999,4]
[366742264,1750427440906,-490.0,0.00025999,4]
[366742266,1750427440917,-166.85471057,0.00025999,4]
[366742268,1750427440927,-490.0,0.00025999,4]
[366742271,1750427440938,-490.0,0.00025999,4]
[366742273,1750427440949,-490.0,0.00025999,4]
[366742275,1750427440959,-490.0,0.00025999,4]
[366742277,1750427440970,-212.73,0.00025999,4]
[366742279,1750427440980,-529.74,0.00025999,4]
[366742281,1750427440991,-490.0,0.00025999,4]
[366742283,1750427441002,-284.33,0.00025999,4]
[366742285,1750427441013,-490.0,0.00025999,4]
[366742287,1750427441024,-158.93,0.00025999,4]
[366742289,1750427441035,-198.74,0.00025999,4]
[366742292,1750427441047,-490.0,0.00025999,4]
[366742294,1750427441058,-490.0,0.00025999,4]
[366742296,1750427441069,-194.64,0.00025999,4]
[366742298,1750427441083,-490.0,0.00025999,4]
[366742300,1750427441094,-490.0,0.00025999,4]
[366742302,1750427441106,-490.0,0.00025999,4]
[366742329,1750427441364,-490.0,0.00025999,4]
[366742333,1750427441391,-490.0,0.00025999,4]
[366742335,1750427441402,-490.0,0.00025999,4]
[366742337,1750427441412,-490.0,0.00025999,4]
[366742339,1750427441422,-490.0,0.00025999,4]
[366742341,1750427441432,-490.0,0.00025999,4]
[366742343,1750427441441,-490.0,0.00025999,4]
[366742345,1750427441451,-490.0,0.00025999,4]
[366742347,1750427441461,-490.0,0.00025999,4]
[366742349,1750427441470,-490.0,0.00025999,4]
[366742351,1750427441480,-536.31,0.00025999,4]
[366742353,1750427441489,-490.0,0.00025999,4]
[366742355,1750427441499,-490.0,0.00025999,4]
[366742357,1750427441509,-490.0,0.00025999,4]
[366742359,1750427441518,-490.0,0.00025999,4]
[366742361,1750427441528,-490.0,0.00025999,4]
[366742363,1750427441538,-490.0,0.00025999,4]
[366742365,1750427441548,-381.70877719,0.00025999,4]
[366742367,1750427441558,-490.0,0.00025999,4]
[366742369,1750427441568,-490.0,0.00025999,4]
[366742371,1750427441579,-490.0,0.00025999,4]
[366742373,1750427441589,-490.0,0.00025999,4]
[366742375,1750427441599,-490.0,0.00025999,4]
[366742377,1750427441608,-490.0,0.00025999,4]
[366742379,1750427441618,-490.0,0.00025999,4]
[366742381,1750427441627,-490.0,0.00025999,4]
[366742383,1750427441637,-490.0,0.00025999,4]
[366742385,1750427441647,-490.0,0.00025999,4]
[366742387,1750427441656,-490.0,0.00025999,4]
[366742389,1750427441666,-490.0,0.00025999,4]
[366742391,1750427441676,-490.0,0.00025999,4]
[366742393,1750427441686,-490.0,0.00025999,4]
[366742395,1750427441696,-490.0,0.00025999,4]
[366742398,1750427441706,-620.78,0.00025999,4]
[366742399,1750427441716,-490.0,0.00025999,4]
[366742402,1750427441726,-490.0,0.00025999,4]
[366742403,1750427441735,-490.0,0.00025999,4]
[366742406,1750427441745,-490.0,0.00025999,4]
[366742408,1750427441755,-490.0,0.00025999,4]
[366742410,1750427441765,-490.0,0.00025999,4]
[366742412,1750427441775,-490.0,0.00025999,4]
[366742414,1750427441784,-490.0,0.00025999,4]
[366742416,1750427441794,-490.0,0.00025999,4]
[366742418,1750427441804,-490.0,0.00025999,4]
[366742420,1750427441814,-627.46,0.00025999,4]
[366742422,1750427441823,-1393.167,0.00025999,12]
[366742424,1750427441833,-172.021,0.00025999,12]
[366742426,1750427441843,-490.0,0.00025999,4]
[366742428,1750427441852,-539.18,0.00025999,4]
[366742430,1750427441862,-490.0,0.00025999,4]
[366742432,1750427441871,-490.0,0.00025999,4]
[366742434,1750427441881,-490.0,0.00025999,4]
[366742436,1750427441891,-600.0,0.00026,2]
[366742437,1750427441901,-150.0,0.00026007,2]
[366742439,1750427441911,-490.0,0.00026008,4]
[366742442,1750427441921,-598.38004121,0.00026008,4]
[366742444,1750427441930,-491.1972755,0.00026008,4]
[366742446,1750427441940,-594.52,0.00026008,4]
[366742448,1750427441950,-490.0,0.00026008,4]
[366742450,1750427441959,-490.0,0.00026008,4]
[366742452,1750427441969,-490.0,0.00026008,4]
[366742454,1750427441979,-490.0,0.00026008,4]
[366742456,1750427441988,-490.0,0.00026008,4]